bitfinex/quotes_ETHUSD_20251009
["timestamp","ask_amount","ask_price","bid_price","bid_amount"]
[1760046450719,5.80363089,4356.6,4356.5,0.001]
[1760046450927,14.66563089,4356.6,4356.5,0.001]
[1760046451912,14.75756367,4356.6,4356.5,0.001]
[1760046452245,16.92966891,4356.6,4356.5,0.001]
[1760046453535,17.54908216,4356.6,4356.5,0.001]
[1760046456129,16.92966891,4356.6,4356.5,0.001]
[1760046456438,17.54906845,4356.6,4356.5,0.001]
[1760046459752,16.92966891,4356.6,4356.5,0.001]
[1760046465789,17.54892744,4356.6,4356.5,0.001]
[1760046466494,16.92966891,4356.6,4356.5,0.001]
[1760046467171,17.54893588,4356.6,4356.5,0.001]
[1760046468094,16.92966891,4356.6,4356.5,0.001]
[1760046468804,16.9302374,4356.6,4356.5,0.001]
[1760046471398,16.93028214,4356.6,4356.5,0.001]
[1760046475284,18.16790079,4356.6,4356.5,0.001]
[1760046475498,18.16790079,4356.6,4355.8,1e-08]
[1760046475499,4.84933681,4355.9,4355.8,1e-08]
[1760046475684,13.0370594,4355.9,4355.8,1e-08]
[1760046475899,13.4906594,4355.9,4355.8,1e-08]
[1760046476183,13.58261331,4355.9,4355.8,1e-08]
[1760046478281,14.4073315,4355.9,4355.8,1e-08]
[1760046481340,13.58261331,4355.9,4355.8,1e-08]
[1760046489564,13.58126714,4355.9,4355.8,1e-08]
[1760046498695,13.58159478,4355.9,4355.8,1e-08]
[1760046499492,14.40631297,4355.9,4355.8,1e-08]
[1760046500990,14.40831297,4355.9,4355.8,1e-08]
[1760046503180,23.96231297,4355.9,4355.8,1e-08]
[1760046503358,23.13759478,4355.9,4355.8,1e-08]
[1760046504500,24.37638018,4355.9,4355.8,1e-08]
[1760046504700,23.13759478,4355.9,4355.8,1e-08]
[1760046504901,24.37638018,4355.9,4355.8,1e-08]
[1760046506384,23.13759478,4355.9,4355.8,1e-08]
[1760046507158,23.13759478,4355.9,4354.4,0.09295391]
[1760046507159,0.6336,4355.7,4354.4,1e-08]
[1760046507418,2.29694965,4353.6,4353.5,0.001]
[1760046507571,13.5754073,4353.6,4353.5,0.001]
[1760046507898,2.9307607,4353.2,4352.5,0.001]
[1760046508095,9.92954554,4353.2,4352.5,0.001]
[1760046508396,10.87050319,4353.2,4352.5,0.001]
[1760046508597,10.96250236,4353.2,4352.5,0.001]
[1760046512306,12.88250236,4353.2,4352.5,0.001]
[1760046512483,12.88163048,4353.2,4352.5,0.001]
[1760046515320,6.40563048,4353.2,4352.5,0.001]
[1760046515509,24.82963048,4353.2,4352.5,0.001]
[1760046517933,24.82963048,4353.2,4352.6,0.001]
[1760046518827,6.40563048,4353.2,4352.6,0.001]
[1760046519122,17.19624564,4353.2,4352.6,0.001]
[1760046519424,21.1686607,4353.2,4352.6,0.001]
[1760046519719,21.8022607,4353.2,4352.6,0.001]
[1760046522639,3.3772607,4353.2,4352.6,0.001]
[1760046522944,12.2452607,4353.2,4352.6,0.001]
[1760046524148,3.3772607,4353.2,4352.6,0.001]
[1760046524350,12.8218959,4353.2,4352.6,0.001]
[1760046528845,3.9538959,4353.2,4352.6,0.001]
[1760046529047,12.8218959,4353.2,4352.6,0.001]
[1760046531836,12.8208959,4353.2,4352.6,0.001]
[1760046533449,13.31482636,4353.2,4352.6,0.001]
[1760046539598,13.93397675,4353.2,4352.6,0.001]
[1760046539757,13.93403401,4353.2,4352.6,0.001]
[1760046540877,13.31482636,4353.2,4352.6,0.001]
[1760046541069,13.93403401,4353.2,4352.6,0.001]
[1760046543273,13.31482636,4353.2,4352.6,0.001]
[1760046545386,13.93403401,4353.2,4352.6,0.001]
[1760046547095,13.31482636,4353.2,4352.6,0.001]
[1760046556502,13.31691458,4353.2,4352.6,0.001]
[1760046563005,2.79317938,4353.2,4352.6,0.001]
[1760046563224,0.49601868,4353.2,4353.1,2.73251348]
[1760046563409,0.002,4353.5,4353.2,2.2971607]
[1760046563720,0.002,4353.5,4353.4,2.29705517]
[1760046564220,0.002,4353.5,4353.4,2.72635517]
[1760046564422,0.002,4353.5,4353.4,3.24074676]
[1760046567024,0.002,4353.5,4353.4,0.51439159]
[1760046567227,0.002,4353.5,4353.4,0.97199159]
[1760046572053,0.002,4353.5,4353.4,0.51439159]
[1760046572347,0.002,4353.5,4353.1,2.41757685]
[1760046572554,0.002,4353.5,4353.2,0.4576]
[1760046573049,0.002,4353.5,4353.1,0.1204]
[1760046573218,0.002,4353.5,4353.2,0.4576]
[1760046575655,0.002,4353.5,4353.1,0.1204]
[1760046575853,0.002,4353.5,4353.2,0.28698791]
[1760046580466,0.002,4353.5,4353.2,2.58413078]
[1760046581140,0.002,4353.5,4353.2,3.04173078]
[1760046587880,0.002,4353.5,4353.2,0.74458791]
[1760046588991,0.002,4353.5,4353.1,2.41760444]
[1760046588992,0.002,4353.5,4353.1,0.1204]
[1760046591962,0.4403,4353.5,4353.1,0.006]
[1760046592779,0.002,4353.5,4353.1,0.006]
[1760046592984,2.29710204,4353.4,4353.1,0.006]
[1760046593584,2.29710204,4353.4,4353.2,0.444]
[1760046593785,2.29710204,4353.4,4353.3,0.444]
[1760046594295,2.29710204,4353.4,4353.1,0.006]
[1760046595587,2.75670217,4353.4,4353.1,0.006]
[1760046599514,2.29710204,4353.4,4353.1,0.006]
[1760046600201,2.29902055,4353.5,4353.1,0.006]
[1760046600388,2.72862055,4353.5,4353.1,0.006]
[1760046601812,0.002,4353.5,4353.1,0.006]
[1760046602026,0.1144,4353.3,4353.2,2.7733323]
[1760046602324,2.29642325,4354.6,4353.2,2.7733323]
[1760046602325,0.61987991,4355.4,4354.9,2.2962618]
[1760046602482,0.007,4355.9,4355.7,2.29579823]
[1760046602683,0.007,4355.9,4355.8,0.1144]
[1760046602923,0.007,4355.9,4355.8,2.41018952]
[1760046603128,0.007,4355.9,4355.8,2.88634741]
[1760046610736,0.007,4355.9,4355.8,0.59055789]
[1760046610969,0.007,4355.9,4355.8,1.20683583]
[1760046611635,0.007,4355.9,4355.8,1.18387794]
[1760046617566,0.007,4355.9,4355.8,1.04827794]
[1760046620190,0.007,4355.9,4355.8,3.34406746]
[1760046628198,0.007,4355.9,4355.8,3.36702535]
[1760046629362,0.007,4355.9,4355.8,5.28702535]
[1760046629658,0.007,4355.9,4355.8,5.26406746]
[1760046634891,0.007,4355.9,4355.8,11.73606746]
[1760046637207,0.007,4355.9,4355.8,11.85246746]
[1760046639843,0.007,4355.9,4355.8,11.85346746]
[1760046655081,0.007,4355.9,4355.8,11.73706746]
[1760046657842,0.007,4355.9,4355.8,9.44127794]
[1760046666621,2.30273681,4355.9,4355.8,0.1154]
[1760046666781,3.00143681,4355.9,4355.8,0.001]
[1760046667199,3.49728602,4355.9,4355.8,0.001]
[1760046667400,3.63503681,4355.9,4355.8,0.001]
[1760046667618,3.63503681,4355.9,4355.3,0.001]
[1760046667619,2.92938952,4355.8,4355.3,0.001]
[1760046667785,4.84960036,4355.4,4355.3,0.001]
[1760046668117,5.3446848,4355.4,4355.3,0.001]
[1760046668324,5.8162848,4355.4,4355.3,0.001]
[1760046668882,16.74036842,4355.4,4355.3,0.001]
[1760046669100,30.66355128,4355.4,4355.3,0.001]
[1760046669421,30.04572345,4355.4,4355.3,0.001]
[1760046669719,20.49672345,4355.4,4355.3,0.001]
[1760046672333,20.00163901,4355.4,4355.3,0.001]
[1760046677125,2.29605308,4355.3,4354.8,1e-08]
[1760046677322,8.68511976,4354.9,4354.8,1e-08]
[1760046677529,15.15811976,4354.9,4354.8,1e-08]
[1760046677846,15.62971976,4354.9,4354.8,1e-08]
[1760046679733,11.79446397,4354.9,4354.8,1e-08]
[1760046680043,13.58705707,4354.9,4354.8,1e-08]
[1760046689962,14.07918524,4354.9,4354.8,1e-08]
[1760046690466,0.6336,4354.3,4353.1,0.006]
[1760046690635,4.8499167,4354.8,4353.1,0.006]
[1760046690636,0.2263,4353.2,4353.1,0.006]
[1760046690967,5.5714607,4353.2,4353.1,0.006]
[1760046691156,7.16753355,4353.2,4353.1,0.006]
[1760046696872,7.66178482,4353.2,4353.1,0.006]
[1760046699378,8.29538482,4353.2,4353.1,0.006]
[1760046701060,11.72738482,4353.2,4353.1,0.006]
[1760046701266,14.11638482,4353.2,4353.1,0.006]
[1760046705358,11.72738482,4353.2,4353.1,0.006]
[1760046705563,14.11538482,4353.2,4353.1,0.006]
[1760046705878,11.72638482,4353.2,4353.1,0.006]
[1760046706062,14.11538482,4353.2,4353.1,0.006]
[1760046710373,2.79141197,4353.2,4353.1,0.006]
[1760046710593,2.2971607,4353.2,4353.1,0.006]
[1760046710795,8.7761607,4353.2,4353.1,0.006]
[1760046711104,0.1144,4353.3,4353.1,0.006]
[1760046711424,2.29701699,4353.5,4353.1,0.006]
[1760046711425,0.1164,4353.5,4353.1,0.006]
[1760046711633,0.002,4353.5,4353.3,0.1144]
[1760046711944,0.002,4353.5,4353.4,0.7222129]
[1760046712093,0.002,4353.5,4353.4,0.43887055]
[1760046712840,0.002,4353.5,4353.4,0.4159]
[1760046713187,0.002,4353.5,4353.3,0.1144]
[1760046713387,0.002,4353.5,4353.1,0.006]
[1760046713588,2.2971607,4353.2,4353.1,0.006]
[1760046714418,8.7751607,4353.2,4353.1,0.006]
[1760046716704,9.2135607,4353.2,4353.1,0.006]
[1760046717036,10.60372229,4353.2,4353.1,0.006]
[1760046721750,11.23732229,4353.2,4353.1,0.006]
[1760046722158,11.73218119,4353.2,4353.1,0.006]
[1760046722529,2.29721348,4353.1,4353.0,0.001]
[1760046722866,2.79207238,4353.1,4353.0,0.001]
[1760046723026,5.05831736,4353.1,4353.0,0.001]
[1760046723225,5.49671736,4353.1,4353.0,0.001]
[1760046730766,7.41671736,4353.1,4353.0,0.001]
[1760046730943,16.28271736,4353.1,4353.0,0.001]
[1760046733968,16.2823315,4353.1,4353.0,0.001]
[1760046736685,13.8943315,4353.1,4353.0,0.001]
[1760046736991,16.2833315,4353.1,4353.0,0.001]
[1760046744896,6.3443315,4353.1,4353.0,0.001]
[1760046745100,15.6497315,4353.1,4353.0,0.001]
[1760046745672,15.6517315,4353.1,4353.0,0.001]
[1760046746082,14.01908652,4353.1,4353.0,0.001]
[1760046746483,3.23208652,4353.1,4353.0,0.001]
[1760046746693,11.16621348,4353.1,4353.0,0.001]
[1760046747621,2.29921348,4353.1,4353.0,0.001]
[1760046747918,8.77721348,4353.1,4353.0,0.001]
[1760046748274,2.29921348,4353.1,4353.0,0.001]
[1760046748478,0.002,4353.1,4353.0,0.001]
[1760046748782,1.025,4353.1,4353.0,0.4169]
[1760046749010,0.002,4353.1,4353.0,0.4169]
[1760046749211,6.48,4353.1,4353.0,0.4169]
[1760046751215,6.48,4353.1,4353.0,0.001]
[1760046752731,0.002,4353.1,4353.0,0.4169]
[1760046753021,6.479,4353.1,4353.0,0.001]
[1760046753723,6.479,4353.1,4353.0,0.4169]
[1760046753929,6.479,4353.1,4353.0,0.69987021]
[1760046754592,0.002,4353.1,4353.0,0.69987021]
[1760046755611,0.002,4353.1,4353.0,0.72284287]
[1760046755805,0.002,4353.1,4353.0,0.69987021]
[1760046758032,0.002,4353.1,4353.0,4.91713646]
[1760046758237,0.002,4353.1,4353.0,4.63416625]
[1760046759230,0.002,4353.1,4353.0,2.3369]
[1760046761432,0.002,4353.1,4353.0,4.63416625]
[1760046773330,0.002,4353.1,4353.0,4.74856625]
[1760046773848,0.002,4353.1,4353.0,5.19950241]
[1760046775872,0.002,4353.1,4353.0,5.29146203]
[1760046780172,0.002,4353.1,4353.0,7.68046203]
[1760046782374,0.002,4353.1,4353.0,8.31406203]
[1760046788148,0.002,4353.1,4353.0,14.78906203]
[1760046795052,0.002,4353.1,4353.0,19.01906203]
[1760046795255,0.002,4353.1,4353.0,18.90466203]
[1760046796898,0.002,4353.1,4353.0,16.98466203]
[1760046797268,0.002,4353.1,4353.0,18.90466203]
[1760046797577,0.002,4353.1,4353.0,19.17812857]
[1760046798898,0.002,4353.1,4353.0,14.94812857]
[1760046802497,0.002,4353.1,4353.0,14.67466203]
[1760046805206,0.002,4353.1,4353.0,14.78906203]
[1760046808311,0.00023599,4353.1,4353.0,14.78906203]
[1760046809317,0.002,4354.0,4353.9,4.85039138]
[1760046809484,0.002,4355.4,4354.8,2.2963167]
[1760046809812,0.002,4355.4,4354.9,4.21626397]
[1760046809992,0.002,4355.4,4355.2,2.2961058]
[1760046810314,0.002,4355.4,4355.3,8.88745308]
[1760046810816,0.002,4355.4,4355.3,9.38826495]
[1760046814216,0.002,4355.4,4355.3,10.25688905]
[1760046815446,0.002,4355.4,4355.3,10.71594354]
[1760046825538,0.002,4355.4,4355.3,13.15514354]
[1760046825721,0.002,4355.4,4355.3,13.26954354]
[1760046828606,0.002,4355.8,4355.7,2.29584222]
[1760046828839,0.002,4355.8,4355.7,13.07684222]
[1760046829039,0.002,4355.8,4355.7,13.48574222]
[1760046829447,0.002,4355.8,4355.7,13.57763572]
[1760046833851,0.002,4355.8,4355.7,14.21123572]
[1760046834060,0.002,4355.8,4355.7,15.07985982]
[1760046838655,0.002,4355.8,4355.7,15.19425982]
[1760046840521,0.002,4355.8,4355.7,15.42395982]
[1760046840721,0.002,4355.8,4355.7,15.19425982]
[1760046841050,0.002,4355.8,4355.7,4.83103572]
[1760046841252,0.002,4355.8,4355.7,11.30303572]
[1760046850760,0.002,4355.8,4355.7,11.93663572]
[1760046851351,0.002,4355.8,4355.7,16.16663572]
[1760046857069,0.002,4356.3,4356.2,4.84917871]
[1760046857238,0.002,4356.3,4356.2,23.97466155]
[1760046857433,0.002,4356.3,4356.2,24.49796155]
[1760046857973,0.002,4356.3,4356.2,24.589839]
[1760046861862,0.007,4356.9,4356.7,2.29531526]
[1760046862063,0.007,4356.9,4356.7,8.77231526]
[1760046862264,0.007,4356.9,4356.7,11.85479566]
[1760046862585,0.007,4356.9,4356.7,11.94666889]
[1760046863862,0.007,4356.9,4356.7,12.46586889]
[1760046865177,0.007,4356.9,4356.7,12.73686665]
[1760046866174,0.007,4356.9,4356.7,12.46586889]
[1760046868582,0.007,4356.9,4356.7,12.73686665]
[1760046873963,0.007,4356.9,4356.7,12.85126665]
[1760046879595,0.007,4356.9,4356.7,12.58026889]
[1760046880772,0.007,4356.9,4356.7,22.12326889]
[1760046880972,0.007,4356.9,4356.7,24.73896889]
[1760046881190,0.007,4356.9,4356.7,24.50926889]
[1760046883497,0.007,4356.9,4356.7,6.10326889]
[1760046883667,0.007,4356.9,4356.7,24.50826889]
[1760046884498,0.007,4356.9,4356.7,17.40066889]
[1760046884672,0.007,4356.9,4356.7,23.87366889]
[1760046885000,0.007,4356.9,4356.7,3.54966889]
[1760046885185,0.007,4356.9,4356.7,2.59227323]
[1760046885375,0.007,4356.9,4356.7,9.06527323]
[1760046885580,0.007,4356.9,4356.7,13.28058849]
[1760046885786,0.007,4356.9,4356.7,9.06527323]
[1760046886189,0.007,4356.9,4356.7,10.98527323]
[1760046886392,0.007,4356.9,4356.7,13.28058849]
[1760046886591,0.007,4356.9,4356.7,13.68948849]
[1760046893522,0.007,4356.9,4356.7,11.30348849]
[1760046894430,0.007,4356.9,4356.7,10.89458849]
[1760046896401,0.007,4356.9,4356.7,11.30348849]
[1760046900410,0.007,4356.9,4356.7,9.00817323]
[1760046901425,0.007,4356.9,4356.7,11.30348849]
[1760046904233,0.007,4356.9,4356.7,10.89458849]
[1760046904620,0.007,4356.9,4356.7,11.30348849]
[1760046904819,0.007,4356.9,4356.7,10.89458849]
[1760046905577,0.007,4356.9,4356.7,11.30348849]
[1760046915456,0.007,4356.9,4356.7,10.89458849]
[1760046916427,0.007,4356.9,4356.7,11.30348849]
[1760046918774,0.007,4356.9,4356.7,10.89458849]
[1760046924748,0.007,4356.9,4356.7,11.46008625]
[1760046934790,0.007,4356.9,4356.7,11.57448625]
[1760046968741,0.007,4356.9,4356.7,12.09368625]
[1760046968928,0.00114558,4356.9,4356.8,4.48626033]
[1760046969128,0.00114558,4356.9,4356.8,6.55778516]
[1760046969335,0.00114558,4356.9,4356.8,4.89516033]
[1760046969734,0.00114558,4356.9,4356.8,4.98702787]
[1760046972843,0.00114558,4356.9,4356.8,5.62062787]
[1760046973013,0.00114558,4356.9,4356.8,7.26030008]
[1760046973218,0.00114558,4356.9,4356.8,5.62062787]
[1760046973449,0.00114558,4356.9,4356.8,7.26030008]
[1760046974040,0.00114558,4356.9,4356.8,5.62062787]
[1760046978754,0.002,4357.4,4357.2,2.92865186]
[1760046978961,0.00025066,4357.3,4357.2,11.31765186]
[1760046979158,0.00025066,4357.3,4357.2,11.84095186]
[1760046979573,0.00025066,4357.3,4357.2,11.93280758]
[1760046980468,0.00025066,4357.3,4357.2,13.56959046]
[1760046980713,0.002,4357.4,4357.3,4.84859919]
[1760046980840,0.002,4357.4,4357.3,7.64349919]
[1760046981040,0.002,4357.4,4357.3,7.91449695]
[1760046981377,0.002,4357.7,4357.6,4.84844119]
[1760046981665,0.002,4357.7,4357.6,11.43184119]
[1760046981866,0.002,4357.7,4357.6,11.84074119]
[1760046982039,0.002,4357.7,4357.6,11.93258974]
[1760046984276,0.002,4357.7,4357.6,12.39796426]
[1760046989977,0.002,4357.7,4357.6,12.66896202]
[1760046992776,0.002,4357.7,4357.6,12.03536202]
[1760046998969,0.002,4357.7,4357.6,12.03536202]
[1760047000197,0.002,4357.7,4357.6,12.66896202]
[1760047004110,0.002,4357.8,4357.7,4.48578629]
[1760047004612,0.002,4357.8,4357.7,4.89468629]
[1760047004786,1e-08,4357.9,4357.8,2.29473587]
[1760047004973,1e-08,4357.9,4357.8,11.38458098]
[1760047005306,1e-08,4357.9,4357.8,11.36163363]
[1760047005610,1e-08,4357.9,4357.8,12.05047881]
[1760047007979,0.002,4358.2,4358.1,2.29457791]
[1760047008202,0.002,4358.2,4358.1,13.20347791]
[1760047008408,0.002,4358.2,4358.1,13.72677791]
[1760047008787,0.002,4358.2,4358.1,14.41562309]
[1760047016118,0.002,4358.2,4358.1,15.04922309]
[1760047016321,3.39899913,4358.4,4358.3,2.29447261]
[1760047016484,3.39899913,4358.4,4358.3,10.68147261]
[1760047016683,3.39899913,4358.4,4358.3,11.09037261]
[1760047017205,3.39899913,4358.4,4358.3,11.77915769]
[1760047020007,3.02628668,4358.4,4358.3,11.77915769]
[1760047023533,2.97628668,4358.4,4358.3,11.77915769]
[1760047026115,2.97628668,4358.4,4358.3,13.75425769]
[1760047026438,2.97628668,4358.4,4358.3,14.27755769]
[1760047037060,2.97628668,4358.4,4358.3,2.98325769]
[1760047037264,2.97628668,4358.4,4358.3,9.44925769]
[1760047037265,3.27391535,4358.4,4358.3,9.44925769]
[1760047037750,3.27391535,4358.4,4358.3,11.36925769]
[1760047038863,3.74551535,4358.4,4357.8,0.001]
[1760047039063,0.2208,4357.9,4357.8,0.001]
[1760047039435,0.6924,4357.9,4357.8,0.001]
[1760047039647,2.98708321,4357.9,4357.8,0.001]
[1760047043750,3.62068321,4357.9,4357.8,0.001]
[1760047044146,3.71258262,4357.9,4357.8,0.001]
[1760047044342,5.1983997,4357.9,4357.8,0.001]
[1760047045281,7.1183997,4357.9,4357.8,0.001]
[1760047049543,2.92854652,4357.4,4357.3,1e-08]
[1760047049748,13.22604944,4357.4,4357.3,1e-08]
[1760047049975,15.60524944,4357.4,4357.3,1e-08]
[1760047050172,17.3952619,4357.4,4357.3,1e-08]
[1760047050375,17.48718834,4357.4,4357.3,1e-08]
[1760047050578,13.65768542,4357.4,4357.3,1e-08]
[1760047050746,17.48718834,4357.4,4357.3,1e-08]
[1760047051160,7.18968542,4357.4,4357.3,1e-08]
[1760047051363,14.25367296,4357.4,4357.3,1e-08]
[1760047052980,5.39967296,4357.4,4357.3,1e-08]
[1760047053190,0.4592,4357.4,4357.3,1e-08]
[1760047053369,6.9272,4357.4,4357.3,1e-08]
[1760047053556,0.68,4357.9,4357.3,1e-08]
[1760047053755,0.1144,4357.6,4357.3,0.09188527]
[1760047054082,0.1144,4357.6,4357.4,2.29494652]
[1760047056557,0.1144,4357.6,4357.5,0.68911892]
[1760047063773,0.5736,4357.6,4357.5,0.68911892]
[1760047063973,2.86844119,4357.6,4357.5,0.68911892]
[1760047065168,3.40789191,4357.6,4357.5,0.68911892]
[1760047065597,3.40789191,4357.6,4357.5,0.69011892]
[1760047066396,9.87589191,4357.6,4357.5,0.69011892]
[1760047068098,3.40789191,4357.6,4357.5,0.69011892]
[1760047068308,9.87589191,4357.6,4357.5,0.69011892]
[1760047070003,7.58105072,4357.6,4357.5,0.69011892]
[1760047070207,7.0416,4357.6,4357.5,0.69011892]
[1760047076320,7.0416,4357.6,4357.5,0.001]
[1760047079906,0.1144,4357.6,4357.5,0.001]
[1760047080109,0.5589,4357.6,4357.5,0.001]
[1760047081919,0.1144,4357.6,4357.5,0.001]
[1760047083321,0.1164,4357.6,4357.5,0.001]
[1760047083619,0.002,4357.6,4357.5,2.29589386]
[1760047084920,0.002,4357.6,4357.5,5.31441942]
[1760047085122,0.002,4357.6,4357.5,5.88979904]
[1760047085502,0.002,4357.6,4357.5,5.48089904]
[1760047085702,0.002,4357.6,4357.5,6.1607968]
[1760047086594,0.002,4357.6,4357.5,6.27535506]
[1760047087735,0.002,4357.6,4357.5,6.1607968]
[1760047093515,0.002,4357.6,4357.5,5.88979904]
[1760047093726,0.002,4357.6,4357.5,11.94689904]
[1760047094106,0.002,4357.6,4357.5,12.35579904]
[1760047098348,0.002,4357.6,4357.5,12.5123968]
[1760047101744,0.002,4357.6,4357.5,12.77026438]
[1760047103651,0.002,4357.6,4357.5,13.40386438]
[1760047104039,0.002,4357.6,4357.5,14.09272696]
[1760047104351,0.002,4358.1,4358.0,2.29463056]
[1760047104535,0.002,4358.1,4358.0,10.90909362]
[1760047104732,0.002,4358.1,4358.0,11.95159362]
[1760047106161,0.002,4358.1,4358.0,12.91139702]
[1760047108157,0.002,4358.1,4358.0,13.02579702]
[1760047114168,0.00026105,4358.1,4358.0,13.02579702]
[1760047119355,0.002,4358.5,4358.3,2.29447261]
[1760047119557,0.002,4358.5,4358.3,13.76904499]
[1760047119761,0.002,4358.5,4358.3,14.81154499]
[1760047119962,0.002,4358.5,4358.3,14.92594499]
[1760047120168,0.002,4358.5,4358.3,15.61471109]
[1760047121893,1e-08,4358.5,4358.4,4.84801997]
[1760047122068,1e-08,4358.5,4358.4,5.80864329]
[1760047122275,1e-08,4358.5,4358.4,6.21754329]
[1760047123295,1e-08,4358.5,4358.4,6.30937097]
[1760047123477,0.002,4358.6,4358.5,2.29436732]
[1760047123683,0.002,4358.6,4358.5,11.94933038]
[1760047124304,0.002,4359.0,4358.8,2.29420941]
[1760047124498,0.002,4359.0,4358.9,10.81449834]
[1760047124807,3.45539586,4359.4,4359.0,1.92]
[1760047125004,3.51379259,4360.4,4359.2,4.21399889]
[1760047125296,3.51379259,4360.4,4359.4,4.84749365]
[1760047125524,3.51379259,4360.4,4359.5,0.6336]
[1760047125667,3.51379259,4360.4,4359.8,2.29368319]
[1760047125866,3.51379259,4360.4,4359.8,20.24162002]
[1760047126067,3.51379259,4360.4,4359.8,20.62758319]
[1760047126292,3.51379259,4360.4,4359.8,21.31720875]
[1760047127302,3.51379259,4360.4,4359.8,21.95080875]
[1760047128080,3.51379259,4360.4,4360.3,2.29342017]
[1760047128279,3.51379259,4360.4,4360.3,13.08435437]
[1760047128480,3.51379259,4360.4,4360.3,13.47032017]
[1760047128686,3.51379259,4360.4,4360.3,13.69978323]
[1760047129003,3.51379259,4360.4,4360.3,14.15019374]
[1760047131476,3.51379259,4360.4,4360.3,13.92073068]
[1760047134611,3.94839259,4360.4,4359.7,2.2937228]
[1760047134821,3.94839259,4360.4,4359.8,8.87008302]
[1760047134990,3.94839259,4360.4,4359.8,6.5764]
[1760047135184,0.63561144,4360.3,4359.9,6.462]
[1760047135487,0.63561144,4360.3,4359.4,2.2938916]
[1760047135488,0.4346,4360.2,4359.4,2.2938916]
[1760047135702,0.1144,4360.1,4359.5,6.462]
[1760047135923,0.4346,4360.0,4359.6,1.92]
[1760047136221,0.1144,4360.1,4359.4,2.4082916]
[1760047136222,0.4346,4359.9,4359.8,1.92]
[1760047136393,3.51379259,4360.4,4359.8,2.37780093]
[1760047136721,3.51379259,4360.4,4360.2,2.29342352]
[1760047136910,3.51379259,4360.4,4360.3,6.462]
[1760047137106,3.51579259,4360.4,4360.3,6.462]
[1760047138459,3.51579259,4360.4,4360.3,8.75542017]
[1760047142754,3.51579259,4360.4,4360.3,6.462]
[1760047144425,3.51579259,4360.4,4360.3,8.75542017]
[1760047144933,3.51579259,4360.4,4360.3,9.44398392]
[1760047145458,3.86737185,4360.4,4360.3,0.68856375]
[1760047145761,4.30967185,4360.4,4360.3,6.462]
[1760047148183,6.60303943,4360.4,4360.3,0.0128]
[1760047159198,13.06503943,4360.4,4360.3,0.0128]
[1760047159621,17.52643126,4360.4,4360.3,0.0128]
[1760047159901,18.02031957,4360.4,4360.3,0.0128]
[1760047160406,18.02031957,4360.4,4359.8,0.001]
[1760047160407,2.92723058,4359.9,4359.8,0.001]
[1760047160609,15.82572241,4359.9,4359.8,0.001]
[1760047160897,16.76191072,4359.9,4359.8,0.001]
[1760047161711,2.92765152,4359.1,4358.9,0.001]
[1760047162023,11.77465152,4359.1,4358.9,0.001]
[1760047162325,14.46872197,4359.1,4358.9,0.001]
[1760047162709,5.62172197,4359.1,4358.9,0.001]
[1760047162920,0.4423,4359.1,4358.9,0.001]
[1760047163115,0.572,4359.3,4358.9,0.001]
[1760047163317,1.0143,4359.4,4358.9,0.001]
[1760047163626,0.4423,4359.3,4358.9,0.001]
[1760047163994,6.9053,4359.3,4358.9,2.29515145]
[1760047164692,6.463,4359.3,4358.9,2.29515145]
[1760047165303,2.29379012,4359.6,4358.9,0.001]
[1760047165606,0.4423,4359.3,4358.9,0.001]
[1760047167930,6.69237901,4359.5,4358.9,0.001]
[1760047168113,0.4603,4359.4,4358.9,0.001]
[1760047169822,0.1144,4359.1,4358.9,0.001]
[1760047172330,0.1144,4359.1,4358.9,2.29515339]
[1760047175510,0.1144,4359.1,4359.0,2.29510415]
[1760047177442,0.1144,4359.1,4359.0,0.001]
[1760047178353,0.1144,4359.1,4359.0,2.29510415]
[1760047179755,0.5747,4359.1,4359.0,0.001]
[1760047179948,1.27857,4359.1,4359.0,0.001]
[1760047181565,7.0407,4359.1,4359.0,0.001]
[1760047183931,0.5747,4359.1,4359.0,0.001]
[1760047184131,7.0407,4359.1,4359.0,0.001]
[1760047187962,6.5804,4359.1,4359.0,0.001]
[1760047188678,6.466,4359.5,4359.2,2.2939836]
[1760047188882,0.1144,4359.4,4359.1,2.29405152]
[1760047189054,0.1144,4359.6,4359.2,2.29395393]
[1760047189253,0.5764,4359.6,4359.2,2.29395393]
[1760047190783,0.1144,4359.6,4359.2,0.4089]
[1760047191113,0.1144,4359.6,4359.0,0.001]
[1760047191257,0.1144,4359.6,4359.5,2.29384103]
[1760047193689,0.002,4359.9,4359.6,2.29375724]
[1760047193993,0.002,4359.9,4359.6,2.2937748]
[1760047193994,0.1164,4359.9,4359.6,2.2937748]
[1760047194181,0.5784,4359.9,4359.6,2.2937748]
[1760047195173,0.5784,4359.9,4359.5,2.2938368]
[1760047195873,0.5784,4359.9,4359.3,1.92]
[1760047196082,0.1164,4359.9,4359.6,2.29375362]
[1760047196792,0.1164,4359.9,4359.6,0.4089]
[1760047196990,0.1164,4359.9,4359.8,2.29368319]
[1760047197457,0.002,4359.9,4359.8,2.29368319]
[1760047200476,0.002,4359.9,4359.8,5.97579289]
[1760047200679,0.002,4359.9,4359.8,0.8882097]
[1760047200891,0.002,4359.9,4359.8,0.1144]
[1760047201197,0.002,4359.9,4359.8,12.93358095]
[1760047202075,0.002,4359.9,4359.8,13.56718095]
[1760047202797,0.002,4359.9,4359.8,13.29618319]
[1760047203812,0.002,4359.9,4359.8,13.56718095]
[1760047204599,0.002,4359.9,4359.8,5.52718095]
[1760047204895,0.002,4359.9,4359.8,13.47458319]
[1760047205409,0.002,4359.9,4359.8,4.21368319]
[1760047205611,0.002,4359.9,4359.8,10.68068319]